fUSD/lending_fUSD_20240502
["ID","MTS","AMOUNT","RATE_DAILY","PERIOD"]
[325242756,1714625439431,-1786.0,0.00012904,2]
[325242757,1714625439440,-808.0,0.00012904,2]
[325242758,1714625439449,-472.916,0.00012904,2]
[325242759,1714625439458,-617.021,0.00012904,2]
[325242760,1714625439467,-311.371,0.00012904,2]
[325242761,1714625439476,-423.473,0.00012904,2]
[325242762,1714625439485,-2468.852,0.00012904,2]
[325242763,1714625439494,-3143.288,0.00012904,2]
[325242764,1714625439503,-1560.796,0.00012904,2]
[325242765,1714625439512,-214.092,0.00012904,2]
[325242766,1714625439521,-446.819,0.00012904,2]
[325242767,1714625439532,-1655.774,0.00012904,2]
[325242768,1714625439542,-218.0,0.00012904,2]
[325242769,1714625439550,-154.342,0.00012904,2]
[325242770,1714625439560,-1148.991,0.00012904,2]
[325242771,1714625439570,-37750.0,0.00012904,2]
[325242772,1714625439579,-2292.0,0.00012904,2]
[325242773,1714625439588,-5964.498,0.00012904,2]
[325242774,1714625439597,-5800.416,0.00012904,2]
[325242775,1714625439607,-1066.654,0.00012904,2]
[325242776,1714625439617,-800.0,0.00012986,2]
[325242777,1714625439626,-1000.0,0.00012987,2]
[325242778,1714625439636,-1057.1087,0.00012987,2]
[325242779,1714625439645,-181.76387745,0.0001299,2]
[325242780,1714625439655,-181.76387745,0.0001299,2]
[325242781,1714625439665,-181.76387745,0.0001299,2]
[325242782,1714625439674,-342.74,0.0001299,2]
[325242783,1714625439684,-342.74,0.0001299,2]
[325242784,1714625439694,-342.74,0.0001299,2]
[325242785,1714625439703,-342.74,0.0001299,2]
[325242786,1714625439713,-342.74,0.0001299,2]
[325242787,1714625439722,-342.74,0.0001299,2]
[325242788,1714625439732,-342.74,0.0001299,2]
[325242789,1714625439741,-342.74,0.0001299,2]
[325242790,1714625439750,-342.74,0.0001299,2]
[325242791,1714625439759,-456.16194059,0.00012998,2]
[325242792,1714625439769,-953.19083685,0.00012998,2]
[325242793,1714625439779,-178.75134766,0.00012998,2]
[325242794,1714625439788,-12618.02434194,0.00012998,2]
[325242795,1714625439798,-163.076917,0.00012998,2]
[325242796,1714625439808,-792.79488993,0.00012998,2]
[325242797,1714625439817,-407.22517109,0.00012998,2]
[325242798,1714625439826,-219.56561751,0.00012998,2]
[325242799,1714625439837,-155.0,0.00012998,2]
[325242800,1714625439846,-1310.89291012,0.00012999,2]
[325242801,1714625439857,-2599.25771804,0.00012999,2]
[325242802,1714625439867,-566.11885197,0.00012999,2]
[325242803,1714625439877,-548400.96423877,0.00013,2]
[325242806,1714625439905,-758.68257186,0.00013,2]
[325242808,1714625439928,-953.23988846,0.00013,2]
[325242809,1714625439944,-488.1294,0.00013,2]
[325242811,1714625439955,-1835.94191889,0.00013,2]
[325242813,1714625439975,-40574.34260653,0.00013,2]
[325242817,1714625440363,-2524.59753214,0.00013,2]
[325242818,1714625440386,-479.63999999,0.00013,2]
[325242845,1714625443138,-741.42393006,0.00013,2]
[325242846,1714625443149,-2882.5,0.00013,2]
[325242848,1714625443591,-3052.70711009,0.00013,2]
[325242871,1714625446280,-279.10306702,0.000129,2]
[325242872,1714625446290,-155.0,0.00012999,2]
[325242873,1714625446299,-2857.85017522,0.00013,2]
[325242874,1714625446364,-1839.4,0.00013,2]
[325242875,1714625446375,-25782.83125,0.00013,2]
[325242893,1714625464504,150.0,0.00010993,2]
[325242901,1714625666244,200.0,0.00011,2]
[325242905,1714626632899,-840.52331929,0.0001148,2]
[325242906,1714626632912,-470.70506733,0.0001148,2]
[325242907,1714626632921,-345.53946765,0.00011481,2]
[325242908,1714626633042,-654.46053235,0.00011481,2]
[325242909,1714626633052,-250.0,0.00011482,2]
[325242910,1714626633061,-193.82,0.00011482,2]
[325242911,1714626633070,-421.44,0.00011485,2]
[325242912,1714626633080,-1645.28,0.00011507,2]
[325242913,1714626633089,-2459.34595483,0.00011534,2]
[325242914,1714626633117,-534.04404517,0.00011534,2]
[325242916,1714626633126,-198.87024569,0.00011598,2]
[325242946,1714626638467,-1117.83215431,0.00011598,2]
[325242947,1714626638477,-2000.0,0.00011626,3]
[325242948,1714626638486,-150.0,0.00011655,2]
[325242949,1714626638496,-250.0,0.00011665,2]
[325242950,1714626638505,-499.99,0.00011665,2]
[325242951,1714626638515,-186.67,0.00011689,2]
[325242952,1714626638524,-313.18035922,0.00011698,2]
[325242953,1714626638533,-578.56,0.00011769,2]
[325242954,1714626638543,-154.33,0.00011793,2]
[325242955,1714626638552,-167.78,0.0001187,2]
[325242956,1714626638561,-150.99,0.00011921,2]
[325242957,1714626638571,-911.44,0.00012041,2]
[325242958,1714626638580,-156.11,0.000122,2]
[325242959,1714626638589,-56385.47391785,0.000123,2]
[325242960,1714626638599,-1143.86500859,0.00012348,2]
[325242961,1714626638609,-158.22,0.00012622,2]
[325242962,1714626638619,-703.54,0.00012678,2]
[325242963,1714626638629,-343.3913,0.00012679,2]
[325242964,1714626638638,-1560.03868352,0.00012755,2]
[325242965,1714626638648,-3497.19944605,0.00012872,2]
[325242966,1714626638659,-302.42,0.00012878,2]
[325242968,1714626638669,-700.86,0.00012878,2]
[325242969,1714626638678,-150.0,0.00012878,2]
[325242970,1714626638687,-322.29,0.00012878,2]
[325242971,1714626638697,-522.41,0.00012878,2]
[325242972,1714626638706,-373.2221,0.0001289,2]
[325242973,1714626638715,-10000.0,0.000129,2]
[325242974,1714626638725,-1000.0,0.000129,2]
[325242975,1714626638734,-14696.3029,0.000129,2]
[325242976,1714626638743,-15439.09216641,0.000129,2]
[325242977,1714626638753,-1684.0,0.000129,2]
[325242978,1714626638763,-2299.0,0.00012904,2]
[325242979,1714626638772,-1396.0,0.00012904,2]
[325242980,1714626638782,-971.0,0.00012904,2]
[325242981,1714626638791,-462.0,0.00012904,2]
[325242982,1714626638800,-542.0,0.00012904,2]
[325242983,1714626638812,-1257.0,0.00012904,2]
[325242984,1714626638821,-808.0,0.00012904,2]
[325242985,1714626638831,-610.0,0.00012904,2]
[325242986,1714626638840,-208.0,0.00012904,2]
[325242987,1714626638850,-437.0,0.00012904,2]
[325242989,1714626638859,-1786.0,0.00012904,2]
[325242991,1714626638868,-2449.0,0.00012904,2]
[325242993,1714626638878,-150.0,0.00012904,2]
[325242995,1714626638887,-421.0,0.00012904,2]
[325242997,1714626638896,-3133.0,0.00012904,2]
[325242999,1714626638905,-1476.0,0.00012904,2]
[325243000,1714626638915,-1643.0,0.00012904,2]
[325243001,1714626638925,-444.0,0.00012904,2]
[325243002,1714626638934,-215.0,0.00012904,2]
[325243003,1714626638944,-1139.0,0.00012904,2]
[325243004,1714626638953,-22845.638,0.00012904,2]
[325243005,1714626638963,-5738.0,0.00012904,2]
[325243006,1714626638972,-444.233,0.00012904,2]
[325243007,1714626638982,-1057.0,0.00012904,2]
[325243008,1714626638991,-421.44,0.0001292,2]
[325243009,1714626639001,-1083.91353653,0.00012968,2]
[325243010,1714626639010,-250000.0,0.0001299,2]
[325243011,1714626639020,-155.4680935,0.00012998,2]
[325243012,1714626639030,-456.16194059,0.00012998,2]
[325243013,1714626639039,-1353.87685749,0.00012998,2]
[325243014,1714626639049,-545.99933752,0.00012998,2]
[325243015,1714626639058,-572.68434188,0.00012998,7]
[325243016,1714626639067,-488.13309174,0.00012999,2]
[325243017,1714626639077,-531.0,0.00013,2]
[325243018,1714626639086,-642979.78246814,0.00013,2]
[325243019,1714626639098,-796.44791203,0.00013,2]
[325243020,1714626639164,-381.33465368,0.00013,2]
[325243021,1714626639177,-1928.11821951,0.00013,2]
[325243022,1714626639188,-3330.51345526,0.00013,2]
[325243023,1714626640555,-1788.82908604,0.00011479,2]
[325243024,1714626640565,-7215.51288035,0.00013,2]
[325243048,1714626643280,-32204.49999984,0.00013,2]
[325243050,1714626643554,-2602.60000024,0.00013,2]
[325243051,1714626643910,-825.40098092,0.00013,2]
[325243052,1714626643923,-2150.0,0.00013,2]
[325243053,1714626643934,-1362.61980105,0.00013,2]
[325243055,1714626646493,-1000.0,0.00012999,2]
[325243056,1714626646503,-246.58900404,0.00013,2]
[325243115,1714627647245,200.0,0.00011,2]
[325243121,1714627831514,-155.0,0.00012518,2]
[325243123,1714627831524,-1000.0,0.00012519,2]
[325243125,1714627831533,-200.0,0.0001253,2]
[325243126,1714627831543,-250.0,0.00012577,2]
[325243127,1714627831552,-250.0,0.00012612,2]
[325243128,1714627831562,-1560.03868352,0.00012686,2]
[325243129,1714627831571,-1000.0,0.000127,2]
[325243130,1714627831580,-1006.54,0.00012754,2]
[325243131,1714627831590,-1754.82611101,0.00012815,2]
[325243132,1714627831602,-275.02123254,0.00012815,2]
[325243133,1714627831641,-364.7,0.00012815,2]
[325243134,1714627831652,-1102.6521025,0.00012815,2]
[325243135,1714627831663,-226.63192523,0.000129,2]
[325243136,1714627831674,-773.36807477,0.000129,2]
[325243137,1714627831683,-1564.21781326,0.000129,2]
[325243138,1714627831696,-403.59107298,0.000129,2]
[325243139,1714627831710,-648.56657786,0.000129,2]
[325243140,1714627831729,-261.62382088,0.000129,2]
[325243141,1714627831742,-629.99914214,0.000129,2]
[325243142,1714627831757,-861.87782854,0.000129,2]
[325243143,1714627831802,-5630.12374434,0.000129,2]
[325243144,1714627831818,-8984.03871471,0.000129,2]
[325243145,1714627831849,-1845.29162567,0.000129,2]
[325243293,1714627838050,-1000.0,0.00012517,2]
[325243294,1714627838059,-3323.17081219,0.000129,2]
[325243295,1714627838069,-5093.0,0.000129,2]
[325243296,1714627838078,-1029.71,0.000129,2]
[325243297,1714627838088,-186.06871134,0.000129,2]
[325243298,1714627838097,-177.44952229,0.000129,2]
[325243299,1714627838106,-150.99,0.000129,2]
[325243300,1714627838115,-166.022,0.00012904,2]
[325243301,1714627838124,-445.476,0.00012904,2]
[325243302,1714627838133,-158.24,0.00012911,2]
[325243303,1714627838142,-259.81383774,0.00012989,2]
[325243304,1714627838151,-545.8933463,0.00012998,2]
[325243306,1714627838160,-571.63572527,0.00012998,7]
[325243308,1714627838172,-1593.72877093,0.00012998,2]
[325243310,1714627838184,-1013.00082832,0.00012998,2]
[325243311,1714627838259,-471.56428248,0.00012998,2]
[325243312,1714627838352,-839.66065216,0.00012998,2]
[325243313,1714627838361,-514.3683455,0.00012999,2]
[325243314,1714627838371,-370.19548805,0.00012999,2]
[325243315,1714627838380,-155.0,0.00012999,2]
[325243316,1714627838389,-456.16194059,0.00012999,2]
[325243317,1714627838399,-1523.64257136,0.00012999,2]
[325243318,1714627838408,-218.23939816,0.00012999,2]
[325243319,1714627838417,-505340.36103019,0.00013,2]
[325243320,1714627838428,-1778.63551021,0.00013,2]
[325243321,1714627838440,-38100.0,0.00013,2]
[325243322,1714627838519,-1859.13214073,0.00013,2]
[325243332,1714627839787,-542.0,0.00012904,2]
[325243333,1714627839797,-236.64235497,0.00013,2]
[325243334,1714627839808,-288.60587885,0.00013,2]
[325243335,1714627839910,-1036.75063436,0.00013,2]
[325243336,1714627839941,-1472.29409628,0.00013,2]
[325243337,1714627839954,-425.6559996,0.00013,2]
[325243348,1714627843071,-4570.85024394,0.00013,2]
[325243353,1714627845862,-1056.0,0.00012904,2]
[325243354,1714627845872,-126052.76840846,0.00013,2]
[325243355,1714627845884,-1443.65029056,0.00013,2]
[325243356,1714627845895,-1517.01332532,0.00013,2]
[325243357,1714627845906,-1609.052,0.00013,2]
[325243415,1714628920373,250.0,0.00012489,2]
[325243419,1714628991737,349.0,0.000125,2]
[325243431,1714629031819,-532.09419512,0.00012564,2]
[325243432,1714629031832,-274.89734844,0.00012564,2]
[325243433,1714629031873,-193.00845644,0.00012564,2]
[325243434,1714629031883,-250.0,0.00012565,2]
[325243435,1714629031893,-1000.0,0.00012566,2]
[325243436,1714629031903,-299.37,0.00012673,2]
[325243437,1714629031913,-172.45,0.00012681,2]
[325243438,1714629031925,-3497.19944605,0.00012704,2]
[325243439,1714629031935,-1048.99817365,0.0001272,2]
[325243440,1714629031959,-511.04050987,0.0001272,2]
[325243441,1714629031969,-1000.0,0.00012895,2]
[325243442,1714629031978,-500.0,0.00012895,2]
[325243443,1714629031987,-1000.0,0.00012896,2]
[325243444,1714629031997,-500.0,0.00012896,2]
[325243445,1714629032006,-500.0,0.00012896,2]
[325243446,1714629032016,-1000.0,0.000129,2]
[325243447,1714629032026,-601.14020066,0.000129,2]
[325243448,1714629032039,-591.826501,0.000129,2]
[325243449,1714629032060,-1007.15591784,0.000129,2]
[325243450,1714629032073,-463.05,0.000129,2]
[325243451,1714629032085,-819.28,0.000129,2]
[325243452,1714629032181,-1633.10754973,0.000129,2]
[325243453,1714629032194,-7065.00647956,0.000129,2]
[325243460,1714629032271,-4431.34297496,0.000129,2]
[325243462,1714629032283,-703.37788318,0.000129,2]
[325243464,1714629032295,-421.94944597,0.000129,2]
[325243833,1714629037908,-1191.75527852,0.000129,2]
[325243837,1714629037949,-1425.94447234,0.000129,2]
[325243846,1714629038206,-2967.78849624,0.000129,2]
[325243847,1714629038219,-1606.58427532,0.000129,2]
[325243848,1714629038234,-692.79472096,0.000129,2]
[325243849,1714629038250,-428.61941707,0.000129,2]
[325243850,1714629038265,-315.19030927,0.000129,2]
[325243851,1714629038343,-1220.20775906,0.000129,2]
[325243852,1714629038359,-406.46916604,0.000129,2]
[325243853,1714629038375,-268.35717132,0.000129,2]
[325243910,1714629039917,-357.42496812,0.000129,2]
[325243911,1714629039959,-451.9375,0.000129,2]
[325243912,1714629039998,-1288.08427097,0.000129,2]
[325243928,1714629043876,-2964.33044187,0.000129,2]
[325243929,1714629043886,-12973.12605644,0.000129,2]
[325243930,1714629043895,-5696.9189,0.000129,2]
[325243931,1714629043904,-15000.0,0.000129,2]
[325243932,1714629043913,-308.44913285,0.000129,2]
[325243933,1714629043923,-1000.0,0.000129,2]
[325243934,1714629043932,-1280.00005566,0.00012988,2]
[325243935,1714629043942,-8827.6083014,0.00012989,2]
[325243936,1714629043951,-179420.91864803,0.0001299,2]
[325243937,1714629043963,-1126.43968259,0.0001299,2]
[325243938,1714629043992,-1067.81353758,0.0001299,2]
[325243939,1714629044004,-455.24917089,0.0001299,2]
[325243940,1714629044016,-401.42267052,0.0001299,2]
[325243941,1714629044027,-1424.40055823,0.0001299,2]
[325243942,1714629044069,-8647.95922252,0.0001299,2]
[325243943,1714629044086,-8947.21879473,0.0001299,2]
[325243944,1714629044097,-8943.78386462,0.0001299,2]
[325243945,1714629044109,-9077.54866152,0.0001299,2]
[325243946,1714629044124,-8943.84023489,0.0001299,2]
[325243947,1714629044136,-4346.29727544,0.0001299,2]
[325243950,1714629044147,-348.64959659,0.0001299,2]
[325243960,1714629044426,-880.59279063,0.0001299,2]
[325243962,1714629046268,-959.66047797,0.0001299,2]
[325243964,1714629046284,-1795.36741921,0.0001299,2]
[325243965,1714629046296,-727.95,0.0001299,2]
[325243966,1714629046315,-360.08234564,0.0001299,2]
[325243970,1714629046356,-3431.15037639,0.0001299,2]
[325243975,1714629050339,155.4914618,0.000125,2]
[325243979,1714629118305,638.99232713,6.94e-05,2]
[325243981,1714629240603,250.0,0.00012431,2]
[325243982,1714629267280,200.0,0.00011,2]
[325243983,1714629330256,200.0,0.00012191,2]
[325243984,1714629356707,157.51,0.00012266,2]
[325243985,1714629361334,945.94,0.00012323,2]
[325243986,1714629388644,250.0,0.0001233,2]
[325243987,1714629598033,179.81145831,0.0001233,2]
[325243988,1714629616033,179.98506405,0.0001233,2]
[325243990,1714629702347,250.0,0.00012118,2]
[325243991,1714629849628,840.0,0.00011866,2]
[325243992,1714629884942,250.0,0.00012022,2]
[325243993,1714629903728,10000.0,0.00012278,2]
[325243994,1714629904277,10000.0,0.00012278,2]
[325243995,1714629905056,459.10976084,0.00012278,2]
[325243996,1714629913096,164.99,0.0001201,2]
[325244000,1714630232014,-536.43102473,0.00012566,2]
[325244001,1714630232024,-39.39897527,0.00012567,2]
[325244002,1714630232071,-197.35018535,0.00012567,2]
[325244003,1714630232080,-456.49966069,0.00012568,2]
[325244004,1714630232090,-405.12132937,0.00012568,2]
[325244005,1714630232106,-148.67208436,0.00012569,2]
[325244006,1714630232117,-301.44505381,0.00012569,2]
[325244007,1714630232129,-438.97877864,0.00012569,2]
[325244008,1714630232152,-110.90408319,0.00012569,2]
[325244009,1714630232161,-155.0,0.00012569,2]
[325244010,1714630232171,-272.82373297,0.00012586,2]
[325244011,1714630232204,-4938.09091435,0.00012586,2]
[325244012,1714630232213,-5210.91464732,0.00012586,2]
[325244013,1714630232223,-5210.91464732,0.00012586,2]
[325244014,1714630232232,-5210.91464732,0.00012586,2]
[325244015,1714630232241,-2939.05229642,0.00012586,2]
[325244016,1714630232253,-2271.8623509,0.00012586,2]
[325244017,1714630232262,-129.27446367,0.00012586,2]
[325244018,1714630232846,-336.6095,0.00012586,2]
[325244043,1714630238295,-4745.03068365,0.00012586,2]
[325244044,1714630238305,-5210.91464732,0.00012586,2]
[325244045,1714630238325,-1555.42037102,0.00012657,2]
[325244046,1714630238336,-150.0,0.00012725,2]
[325244047,1714630238346,-181.63829139,0.00012795,2]
[325244048,1714630238357,-1030.60552803,0.0001289,2]
[325244049,1714630238374,-15608.99885899,0.0001289,2]
[325244050,1714630238430,-692.06926178,0.0001289,2]
[325244051,1714630238442,-1113.16775,0.0001289,2]
[325244052,1714630238499,-8247.41137023,0.0001289,2]
[325244053,1714630238512,-597.1144442,0.0001289,2]
[325244054,1714630238570,-710.733,0.0001289,2]
[325244055,1714630238582,-459.50621955,0.0001289,2]
[325244056,1714630238643,-3829.15498882,0.0001289,2]
[325244057,1714630238655,-16934.04267543,0.0001289,2]
[325244059,1714630240224,-7479.71486377,0.0001289,2]
[325244060,1714630240241,-496.27636977,0.0001289,2]
[325244061,1714630240253,-1153.5,0.0001289,2]
[325244062,1714630240307,-1034.268095,0.0001289,2]
[325244063,1714630240472,-710.99901753,0.0001289,2]
[325244066,1714630243306,-1254.60342369,0.0001289,2]
[325244067,1714630243357,-4889.74313321,0.0001289,2]
[325244068,1714630243367,-1000.0,0.00012895,2]
[325244069,1714630243375,-10701.31,0.00012895,2]
[325244070,1714630243385,-610.4073,0.00012895,2]
[325244071,1714630243395,-1000.0,0.00012896,2]
[325244072,1714630243406,-1000.0,0.00012896,2]
[325244073,1714630243415,-500.0,0.00012896,2]
[325244074,1714630243424,-167.050215,0.00012898,3]
[325244075,1714630243435,-308.44913284,0.00012898,2]
[325244076,1714630243444,-364.9708,0.000129,2]
[325244077,1714630243453,-10000.0,0.000129,2]
[325244078,1714630243463,-174.54400576,0.000129,2]
[325244079,1714630243474,-221.47751285,0.000129,2]
[325244080,1714630243483,-11892.03221844,0.000129,2]
[325244081,1714630243492,-177.44952229,0.000129,2]
[325244082,1714630243501,-177.44952229,0.000129,2]
[325244083,1714630243511,-542.0,0.00012916,2]
[325244084,1714630243520,-4631.26229262,0.00012988,2]
[325244085,1714630243530,-1082.46483,0.00012988,2]
[325244086,1714630243539,-155.4806413,0.00012988,2]
[325244087,1714630243549,-159.97272813,0.00012988,2]
[325244088,1714630243559,-740.5603579,0.00012988,2]
[325244089,1714630243568,-223.7471019,0.00012988,2]
[325244090,1714630243577,-203.37544083,0.00012988,2]
[325244091,1714630243586,-4758.4037266,0.00012989,2]
[325244092,1714630243596,-180861.81193539,0.0001299,2]
[325244093,1714630243608,-166.34515989,0.0001299,2]
[325244094,1714630243618,-166.34515989,0.0001299,2]
[325244095,1714630243628,-166.34515989,0.0001299,2]
[325244096,1714630243637,-1000.80248,0.0001299,2]
[325244097,1714630243646,-4299.6092446,0.00012991,2]
[325244098,1714630243655,-3840.8147627,0.00012991,2]
[325244099,1714630243664,-3382.0202807,0.00012991,2]
[325244100,1714630243673,-2923.2257988,0.00012991,2]
[325244101,1714630243682,-2464.4313168,0.00012991,2]
[325244102,1714630243691,-1352.0,0.00012995,2]
[325244103,1714630243700,-1352.0,0.00012995,2]
[325244104,1714630243709,-1352.0,0.00012995,2]
[325244106,1714630243718,-1352.0,0.00012995,2]
[325244108,1714630243727,-1352.0,0.00012995,2]
[325244109,1714630243737,-1352.0,0.00012995,2]
[325244110,1714630243746,-1352.0,0.00012995,2]
[325244111,1714630243755,-1352.0,0.00012995,2]
[325244112,1714630243764,-1352.0,0.00012995,2]
[325244113,1714630243773,-1352.0,0.00012995,2]
[325244114,1714630243782,-3008.10976591,0.00012998,2]
[325244115,1714630243791,-488.63241753,0.00012998,2]
[325244116,1714630243800,-288.56508134,0.00012998,2]
[325244117,1714630243810,-344.27014613,0.00012998,2]
[325244118,1714630243820,-316.44060217,0.00012998,2]
[325244119,1714630243829,-997.07454029,0.00012998,2]
[325244120,1714630243838,-974.69469066,0.00012998,2]
[325244121,1714630243848,-1259.40402802,0.00012998,2]
[325244122,1714630243858,-262.4977061,0.00012998,2]
[325244123,1714630243867,-208.85153682,0.00012998,2]
[325244124,1714630243876,-158.26245048,0.00012998,2]
[325244125,1714630243885,-18161.28979469,0.00012998,2]
[325244126,1714630243895,-788.6775476,0.00012998,2]
[325244127,1714630243905,-35805.10778066,0.00012998,2]
[325244128,1714630243914,-6685.85378964,0.00012998,2]
[325244129,1714630243923,-11421.87035755,0.00012999,2]
[325244130,1714630243934,-218.23939816,0.00012999,2]
[325244131,1714630243943,-532.0,0.00013,2]
[325244132,1714630243952,-158672.75745177,0.00013,2]
[325244133,1714630243966,-1485619.15486118,0.00013,2]
[325244134,1714630243976,-200172.71883613,0.00013,2]
[325244135,1714630243986,-104238.48078379,0.00013,2]
[325244136,1714630243998,-373.5132,0.00013,2]
[325244137,1714630244131,-3.68136983,0.00013,2]
[325244138,1714630246184,-283.97270301,0.00012988,2]
[325244139,1714630246194,-237.12431257,0.00012988,2]
[325244140,1714630246209,-33039.90298442,0.00013,2]
[325244141,1714630246282,-6327.01232262,0.00013,2]
[325244142,1714630246314,-823.55868869,0.00013,2]
[325244143,1714630246328,-492.40673128,0.00013,2]
[325244145,1714630252114,3187.58301059,0.00012349,2]
[325244146,1714630353917,891.58691728,0.00012469,2]
[325244147,1714631043430,150.0,0.00010993,2]
[325244148,1714631246691,200.0,0.00011,2]
[325244149,1714631373457,-1000.0,0.00011644,2]
[325244150,1714631373484,-162.24495503,0.00011645,2]
[325244151,1714631373504,-155.0,0.00011645,2]
[325244152,1714631373523,-405.12132937,0.00011646,2]
[325244153,1714631373542,-1000.1905156,0.00011655,2]
[325244157,1714631432617,-4210.72413172,0.00011655,2]
[325244158,1714631432627,-5210.91464732,0.00011655,2]
[325244159,1714631432636,-578.63322096,0.00011655,2]
[325244160,1714631432648,-2924.74005624,0.00011655,2]
[325244161,1714631432663,-684.71908266,0.00011655,2]
[325244162,1714631432674,-1022.82228746,0.00011655,2]
[325244163,1714631432685,-239.49,0.00011673,2]
[325244164,1714631432694,-165.0,0.00011836,2]
[325244166,1714631432703,-219.7951591,0.00012031,2]
[325244169,1714631432715,-30.2048409,0.00012031,2]
[325244170,1714631432729,-328.0,0.00012083,2]
[325244171,1714631432738,-157.52,0.00012095,2]
[325244172,1714631432747,-672.0,0.00012256,2]
[325244173,1714631432756,-456.49966069,0.00012577,2]
[325244174,1714631432765,-419.52,0.00012578,2]
[325244175,1714631432775,-1043.8,0.000126,2]
[325244176,1714631432786,-419.52,0.000126,2]
[325244177,1714631432794,-419.52,0.000126,2]
[325244178,1714631432807,-3497.19944605,0.00012721,2]
[325244179,1714631432817,-1560.03868352,0.00012809,2]
[325244180,1714631432826,-252.81992587,0.00012869,2]
[325244181,1714631432835,-834.00207,0.0001287,2]
[325244182,1714631432843,-10000.0,0.000129,2]
[325244183,1714631432852,-2700.65538297,0.000129,2]
[325244204,1714631438755,-2010.66061732,0.000129,2]
[325244205,1714631438770,-1776.67009971,0.000129,2]
[325244206,1714631438779,-177.18201028,0.000129,2]
[325244207,1714631438788,-2160.1718,0.000129,2]
[325244208,1714631438797,-1066.71691741,0.000129,2]
[325244210,1714631438822,-11145.40877382,0.000129,2]
[325244211,1714631438832,-339.32672962,0.000129,2]
[325244212,1714631438841,-178.75223099,0.000129,2]
[325244213,1714631438850,-308.44913284,0.000129,2]
[325244214,1714631438859,-166.56,0.00012919,2]
[325244215,1714631438869,-155.15597949,0.0001299,2]
[325244216,1714631438879,-199.89661898,0.00012998,2]
[325244217,1714631438888,-376.13730751,0.00012998,2]
[325244218,1714631438898,-2043.10730639,0.00012998,2]
[325244219,1714631438907,-237.02687238,0.00012998,2]
[325244220,1714631438917,-425.43437761,0.00012998,2]
[325244221,1714631438926,-195.24682787,0.00012998,2]
[325244222,1714631438935,-1540.6255,0.00012998,2]
[325244223,1714631438944,-370.02610625,0.00012998,2]
[325244224,1714631438953,-384.54846383,0.00012998,2]
[325244227,1714631440607,-298.63583525,0.00012998,2]
[325244228,1714631440732,-316.81570092,0.00012998,2]
[325244229,1714631440742,-212.3598255,0.00012998,2]
[325244230,1714631440751,-155.0,0.00012998,2]
[325244231,1714631440761,-425.14284499,0.00012998,2]
[325244232,1714631440771,-209.84557516,0.00012999,2]
[325244233,1714631440780,-872.54063877,0.00012999,2]
[325244234,1714631440793,-4127.45936123,0.00012999,2]
[325244235,1714631440806,-2500.0,0.00012999,2]
[325244236,1714631440816,-2500.0,0.00012999,2]
[325244237,1714631440825,-2500.0,0.00012999,2]
[325244238,1714631440835,-2500.0,0.00012999,2]
[325244239,1714631440844,-2500.0,0.00012999,2]
[325244240,1714631440853,-2500.0,0.00012999,2]
[325244241,1714631440862,-2500.0,0.00012999,2]
[325244243,1714631440873,-1727.72828769,0.00012999,2]
[325244245,1714631440882,-2500.0,0.00012999,2]
[325244247,1714631440891,-2500.0,0.00012999,2]
[325244249,1714631440900,-2500.0,0.00012999,2]
[325244251,1714631440910,-2500.0,0.00012999,2]
[325244253,1714631440919,-2500.0,0.00012999,2]
[325244255,1714631440929,-2500.0,0.00012999,2]
[325244257,1714631440939,-2500.0,0.00012999,2]
[325244259,1714631440948,-2500.0,0.00012999,2]
[325244261,1714631440958,-2500.0,0.00012999,2]
[325244263,1714631440967,-2500.0,0.00012999,2]
[325244265,1714631440977,-2500.0,0.00012999,2]
[325244267,1714631440986,-2500.0,0.00012999,2]
[325244269,1714631440995,-2500.0,0.00012999,2]